[Event "Titled Tuesday Blitz November 9 2021"]
[White "Gabrielian, Artur"]
[Black "Valner, Uku"]
[WhiteFideId "4131002"]
[BlackFideId "4502205"]
[WhiteElo "2440"]
[BlackElo "2287"]
[Result "1-0"]
[Round "09"]
[TimeControl "180+1"]
[Date "2021.11.09"]
[WhiteClock "0:02:13"]
[BlackClock "0:00:52"]

1. d4 {[%clk 0:03:00]}  b6 {[%clk 0:02:43]} 2. c4 {[%clk 0:02:59]}  Bb7 {[%clk 0:02:42]} 3. Nc3 {[%clk 0:02:59]}  Nf6 {[%clk 0:02:34]} 4. Qc2 {[%clk 0:02:58]}  c5 {[%clk 0:02:29]} 5. d5 {[%clk 0:02:58]}  e6 {[%clk 0:02:22]} 6. e4 {[%clk 0:02:56]}  d6 {[%clk 0:02:18]} 7. Nf3 {[%clk 0:02:55]}  Nbd7 {[%clk 0:02:18]} 8. Be2 {[%clk 0:02:51]}  Be7 {[%clk 0:02:13]} 9. dxe6 {[%clk 0:02:47]}  fxe6 {[%clk 0:02:13]} 10. Ng5 {[%clk 0:02:47]}  Nf8 {[%clk 0:02:13]} 11. O-O {[%clk 0:02:47]}  h6 {[%clk 0:02:12]} 12. Nh3 {[%clk 0:02:45]}  Ng6 {[%clk 0:02:06]} 13. f4 {[%clk 0:02:44]}  e5 {[%clk 0:02:02]} 14. Nd5 {[%clk 0:02:42]}  Nxd5 {[%clk 0:01:43]} 15. exd5 {[%clk 0:02:42]}  Nxf4 {[%clk 0:01:31]} 16. Bxf4 {[%clk 0:02:35]}  exf4 {[%clk 0:01:32]} 17. Bh5+ {[%clk 0:02:31]}  Kd7 {[%clk 0:01:32]} 18. Nxf4 {[%clk 0:02:31]}  Kc8 {[%clk 0:01:10]} 19. Ne6 {[%clk 0:02:23]}  Qg8 {[%clk 0:01:06]} 20. Bf7 {[%clk 0:02:20]}  Qh7 {[%clk 0:01:03]} 21. Bg6 {[%clk 0:02:20]}  Qg8 {[%clk 0:01:04]} 22. Rf7 {[%clk 0:02:20]}  Bf6 {[%clk 0:01:03]} 23. Qa4 {[%clk 0:02:15]}  Kb8 {[%clk 0:00:53]} 24. Rxb7+ {[%clk 0:02:14]}  Kxb7 {[%clk 0:00:51]} 25. Qc6+ {[%clk 0:02:13]}  Ka6 {[%clk 0:00:52]} 26. Nc7+ {[%clk 0:02:13]} 1-0


[Site "https://www.chess.com"]

[Event "Titled Tuesday Blitz November 9 2021"]
[White "Gelman, Alexander"]
[Black "Afanasiev, Nikita"]
[WhiteFideId "4118316"]
[BlackFideId "24183555"]
[WhiteElo "2375"]
[BlackElo "2577"]
[Result "0-1"]
[Round "09"]
[TimeControl "180+1"]
[Date "2021.11.09"]
[WhiteClock "0:00:06"]
[BlackClock "0:00:15"]

1. d4 {[%clk 0:03:00]}  a6 {[%clk 0:02:59]} 2. e4 {[%clk 0:02:58]}  e6 {[%clk 0:02:59]} 3. Nc3 {[%clk 0:02:52]}  d5 {[%clk 0:02:58]} 4. Nf3 {[%clk 0:02:34]}  Nf6 {[%clk 0:02:57]} 5. e5 {[%clk 0:02:33]}  Nfd7 {[%clk 0:02:55]} 6. Ne2 {[%clk 0:02:33]}  c5 {[%clk 0:02:54]} 7. c3 {[%clk 0:02:34]}  b5 {[%clk 0:02:55]} 8. Nf4 {[%clk 0:02:32]}  Nc6 {[%clk 0:02:53]} 9. Bd3 {[%clk 0:02:31]}  Bb7 {[%clk 0:02:44]} 10. h4 {[%clk 0:02:28]}  Qe7 {[%clk 0:02:34]} 11. Be3 {[%clk 0:02:16]}  O-O-O {[%clk 0:02:25]} 12. dxc5 {[%clk 0:02:01]}  Nxc5 {[%clk 0:02:17]} 13. a4 {[%clk 0:01:56]}  Nxa4 {[%clk 0:01:59]} 14. Rxa4 {[%clk 0:01:54]}  bxa4 {[%clk 0:01:58]} 15. Qxa4 {[%clk 0:01:54]}  d4 {[%clk 0:01:58]} 16. Nxd4 {[%clk 0:01:46]}  Nxe5 {[%clk 0:01:55]} 17. Bxa6 {[%clk 0:01:42]}  Bxa6 {[%clk 0:01:54]} 18. Qxa6+ {[%clk 0:01:41]}  Qb7 {[%clk 0:01:55]} 19. Qa4 {[%clk 0:01:26]}  Bc5 {[%clk 0:01:19]} 20. O-O {[%clk 0:01:25]}  Rd7 {[%clk 0:01:06]} 21. Ra1 {[%clk 0:00:47]}  Rhd8 {[%clk 0:01:06]} 22. b4 {[%clk 0:00:42]}  Bxd4 {[%clk 0:00:55]} 23. Bxd4 {[%clk 0:00:42]}  Nc6 {[%clk 0:00:48]} 24. Bc5 {[%clk 0:00:36]}  e5 {[%clk 0:00:39]} 25. b5 {[%clk 0:00:29]}  Ne7 {[%clk 0:00:29]} 26. Nh5 {[%clk 0:00:19]}  Nf5 {[%clk 0:00:25]} 27. c4 {[%clk 0:00:10]}  Nxh4 {[%clk 0:00:22]} 28. f3 {[%clk 0:00:07]}  Rd2 {[%clk 0:00:18]} 29. Bf2 {[%clk 0:00:06]}  Nxf3+ {[%clk 0:00:17]} 30. gxf3 {[%clk 0:00:05]}  Qxf3 {[%clk 0:00:18]} 31. Qa8+ {[%clk 0:00:04]}  Qxa8 {[%clk 0:00:17]} 32. Rxa8+ {[%clk 0:00:05]}  Kb7 {[%clk 0:00:18]} 33. Rxd8 {[%clk 0:00:06]}  Rxd8 {[%clk 0:00:17]} 34. Nxg7 {[%clk 0:00:07]}  Rg8 {[%clk 0:00:16]} 35. c5 {[%clk 0:00:06]}  Rxg7+ {[%clk 0:00:16]} 36. Kf1 {[%clk 0:00:07]}  e4 {[%clk 0:00:15]} 37. c6+ {[%clk 0:00:07]}  Kc7 {[%clk 0:00:16]} 38. Bd4 {[%clk 0:00:06]}  Rg5 {[%clk 0:00:15]} 0-1


[Site "https://www.chess.com"]

[Event "Titled Tuesday Blitz November 9 2021"]
[White "Hansen, Eric"]
[Black "Piesik, Piotr"]
[WhiteFideId "2606771"]
[BlackFideId "1136194"]
[WhiteElo "2568"]
[BlackElo "2336"]
[Result "1/2-1/2"]
[Round "09"]
[TimeControl "180+1"]
[Date "2021.11.09"]
[WhiteClock "0:00:04"]
[BlackClock "0:00:12"]

1. e4 {[%clk 0:03:00]}  g6 {[%clk 0:02:58]} 2. d4 {[%clk 0:03:00]}  Bg7 {[%clk 0:02:58]} 3. Nc3 {[%clk 0:03:01]}  c6 {[%clk 0:02:58]} 4. f4 {[%clk 0:03:00]}  d5 {[%clk 0:02:58]} 5. e5 {[%clk 0:03:01]}  Nh6 {[%clk 0:02:59]} 6. Be3 {[%clk 0:02:43]}  Ng4 {[%clk 0:02:57]} 7. Qd2 {[%clk 0:02:40]}  h5 {[%clk 0:02:56]} 8. Nf3 {[%clk 0:02:33]}  Nxe3 {[%clk 0:02:55]} 9. Qxe3 {[%clk 0:02:34]}  Bg4 {[%clk 0:02:54]} 10. Be2 {[%clk 0:02:18]}  Bxf3 {[%clk 0:02:53]} 11. Bxf3 {[%clk 0:02:15]}  e6 {[%clk 0:02:53]} 12. O-O-O {[%clk 0:02:15]}  Nd7 {[%clk 0:02:51]} 13. g3 {[%clk 0:02:11]}  Qa5 {[%clk 0:02:48]} 14. Kb1 {[%clk 0:02:12]}  O-O-O {[%clk 0:02:48]} 15. Ne2 {[%clk 0:02:09]}  c5 {[%clk 0:02:46]} 16. c4 {[%clk 0:02:08]}  cxd4 {[%clk 0:02:45]} 17. Rxd4 {[%clk 0:02:06]}  Nb6 {[%clk 0:02:39]} 18. cxd5 {[%clk 0:02:02]}  Nxd5 {[%clk 0:02:39]} 19. Qd3 {[%clk 0:01:31]}  h4 {[%clk 0:01:58]} 20. Rc1+ {[%clk 0:01:24]}  Kb8 {[%clk 0:01:58]} 21. Bxd5 {[%clk 0:01:24]}  Rxd5 {[%clk 0:01:57]} 22. Rxd5 {[%clk 0:01:24]}  Qxd5 {[%clk 0:01:58]} 23. Qxd5 {[%clk 0:01:24]}  exd5 {[%clk 0:01:58]} 24. Rd1 {[%clk 0:01:18]}  hxg3 {[%clk 0:01:58]} 25. hxg3 {[%clk 0:01:19]}  f6 {[%clk 0:01:50]} 26. e6 {[%clk 0:00:56]}  f5 {[%clk 0:01:49]} 27. Rxd5 {[%clk 0:00:49]}  Re8 {[%clk 0:01:49]} 28. Rd7 {[%clk 0:00:35]}  Bf6 {[%clk 0:01:40]} 29. Rd6 {[%clk 0:00:17]}  Kc7 {[%clk 0:01:36]} 30. Rd7+ {[%clk 0:00:17]}  Kc6 {[%clk 0:01:36]} 31. Rf7 {[%clk 0:00:13]}  Rxe6 {[%clk 0:01:35]} 32. Nc1 {[%clk 0:00:13]}  Bd4 {[%clk 0:01:28]} 33. Nd3 {[%clk 0:00:08]}  Re3 {[%clk 0:01:25]} 34. Kc2 {[%clk 0:00:08]}  Rxg3 {[%clk 0:01:24]} 35. a4 {[%clk 0:00:05]}  a5 {[%clk 0:01:23]} 36. Re7 {[%clk 0:00:03]}  b6 {[%clk 0:01:21]} 37. b3 {[%clk 0:00:02]}  Rg2+ {[%clk 0:01:17]} 38. Kc1 {[%clk 0:00:02]}  g5 {[%clk 0:01:08]} 39. fxg5 {[%clk 0:00:01]}  Rxg5 {[%clk 0:01:09]} 40. Kd2 {[%clk 0:00:01]}  Rg2+ {[%clk 0:01:09]} 41. Kd1 {[%clk 0:00:01]}  Bc3 {[%clk 0:01:00]} 42. Kc1 {[%clk 0:00:01]}  Bd4 {[%clk 0:00:52]} 43. Kd1 {[%clk 0:00:01]}  Rg3 {[%clk 0:00:50]} 44. Kd2 {[%clk 0:00:01]}  Kd5 {[%clk 0:00:50]} 45. Re8 {[%clk 0:00:01]}  Rg2+ {[%clk 0:00:49]} 46. Kd1 {[%clk 0:00:02]}  Ra2 {[%clk 0:00:38]} 47. Nf4+ {[%clk 0:00:02]}  Kc6 {[%clk 0:00:36]} 48. Re6+ {[%clk 0:00:02]}  Kc5 {[%clk 0:00:34]} 49. Nd3+ {[%clk 0:00:03]}  Kd5 {[%clk 0:00:34]} 50. Re8 {[%clk 0:00:04]}  Bc3 {[%clk 0:00:30]} 51. Nf4+ {[%clk 0:00:04]}  Kc5 {[%clk 0:00:29]} 52. Rc8+ {[%clk 0:00:04]}  Kb4 {[%clk 0:00:19]} 53. Nd5+ {[%clk 0:00:04]}  Kxb3 {[%clk 0:00:19]} 54. Rxc3+ {[%clk 0:00:04]}  Kxa4 {[%clk 0:00:18]} 55. Nxb6+ {[%clk 0:00:04]}  Kb5 {[%clk 0:00:17]} 56. Nd5 {[%clk 0:00:05]}  a4 {[%clk 0:00:15]} 57. Kc1 {[%clk 0:00:05]}  Rf2 {[%clk 0:00:14]} 58. Kb1 {[%clk 0:00:05]}  f4 {[%clk 0:00:15]} 59. Rc8 {[%clk 0:00:04]}  f3 {[%clk 0:00:14]} 60. Nc3+ {[%clk 0:00:03]}  Kb4 {[%clk 0:00:13]} 61. Nd5+ {[%clk 0:00:03]}  Kb5 {[%clk 0:00:11]} 62. Nc3+ {[%clk 0:00:03]}  Kb4 {[%clk 0:00:12]} 63. Nd5+ {[%clk 0:00:04]}  Kb5 {[%clk 0:00:12]} 1/2-1/2


[Site "https://www.chess.com"]

[Event "Titled Tuesday Blitz November 9 2021"]
[White "Hjartarson, Johann"]
[Black "Rustemov, Alexander"]
[WhiteFideId "2300044"]
[BlackFideId "4119002"]
[WhiteElo "2502"]
[BlackElo "2780"]
[Result "0-1"]
[Round "09"]
[TimeControl "180+1"]
[Date "2021.11.09"]
[WhiteClock "0:00:04"]
[BlackClock "0:00:16"]

1. e4 {[%clk 0:03:00]}  e6 {[%clk 0:02:59]} 2. d4 {[%clk 0:03:00]}  d5 {[%clk 0:03:00]} 3. e5 {[%clk 0:02:59]}  c5 {[%clk 0:02:59]} 4. c3 {[%clk 0:02:59]}  Qb6 {[%clk 0:03:00]} 5. Nf3 {[%clk 0:02:58]}  Bd7 {[%clk 0:03:01]} 6. Bd3 {[%clk 0:02:58]}  cxd4 {[%clk 0:03:00]} 7. Nxd4 {[%clk 0:02:57]}  Ne7 {[%clk 0:02:58]} 8. O-O {[%clk 0:02:56]}  Nbc6 {[%clk 0:02:58]} 9. Nxc6 {[%clk 0:02:55]}  Nxc6 {[%clk 0:02:57]} 10. Qe2 {[%clk 0:02:55]}  Qc7 {[%clk 0:02:52]} 11. f4 {[%clk 0:02:53]}  Bc5+ {[%clk 0:02:45]} 12. Kh1 {[%clk 0:02:53]}  h5 {[%clk 0:02:28]} 13. b4 {[%clk 0:02:47]}  Bb6 {[%clk 0:02:19]} 14. Na3 {[%clk 0:02:46]}  a6 {[%clk 0:02:19]} 15. Bd2 {[%clk 0:02:32]}  g6 {[%clk 0:02:18]} 16. c4 {[%clk 0:02:25]}  Ne7 {[%clk 0:01:52]} 17. Rac1 {[%clk 0:02:21]}  Qd8 {[%clk 0:01:51]} 18. Rfd1 {[%clk 0:02:05]}  Rc8 {[%clk 0:01:48]} 19. cxd5 {[%clk 0:01:57]}  exd5 {[%clk 0:01:38]} 20. Rxc8 {[%clk 0:01:48]}  Bxc8 {[%clk 0:01:34]} 21. Rc1 {[%clk 0:01:38]}  O-O {[%clk 0:01:33]} 22. Nc2 {[%clk 0:01:34]}  Bg4 {[%clk 0:01:30]} 23. Qe1 {[%clk 0:01:32]}  Bf5 {[%clk 0:01:30]} 24. Qe2 {[%clk 0:01:27]}  Qd7 {[%clk 0:01:29]} 25. Ne1 {[%clk 0:01:25]}  Rc8 {[%clk 0:01:17]} 26. Bxf5 {[%clk 0:01:07]}  Nxf5 {[%clk 0:01:15]} 27. Rxc8+ {[%clk 0:01:05]}  Qxc8 {[%clk 0:01:16]} 28. Qd3 {[%clk 0:01:05]}  Qc4 {[%clk 0:01:12]} 29. Qxc4 {[%clk 0:01:03]}  dxc4 {[%clk 0:01:12]} 30. Nc2 {[%clk 0:01:01]}  Bd4 {[%clk 0:00:53]} 31. g3 {[%clk 0:00:57]}  b5 {[%clk 0:00:51]} 32. Kg2 {[%clk 0:00:57]}  Kf8 {[%clk 0:00:50]} 33. Kf3 {[%clk 0:00:56]}  Ke7 {[%clk 0:00:50]} 34. h3 {[%clk 0:00:56]}  Bb6 {[%clk 0:00:49]} 35. g4 {[%clk 0:00:52]}  hxg4+ {[%clk 0:00:48]} 36. hxg4 {[%clk 0:00:51]}  Nd4+ {[%clk 0:00:49]} 37. Nxd4 {[%clk 0:00:51]}  Bxd4 {[%clk 0:00:50]} 38. Ke4 {[%clk 0:00:49]}  Bb2 {[%clk 0:00:50]} 39. Be3 {[%clk 0:00:48]}  f6 {[%clk 0:00:41]} 40. Bc5+ {[%clk 0:00:45]}  Kf7 {[%clk 0:00:40]} 41. exf6 {[%clk 0:00:20]}  Bxf6 {[%clk 0:00:38]} 42. Kd5 {[%clk 0:00:19]}  Ba1 {[%clk 0:00:29]} 43. Ke4 {[%clk 0:00:18]}  Ke6 {[%clk 0:00:29]} 44. Be3 {[%clk 0:00:17]}  Bc3 {[%clk 0:00:27]} 45. Bc5 {[%clk 0:00:17]}  Bd2 {[%clk 0:00:27]} 46. Bf8 {[%clk 0:00:11]}  a5 {[%clk 0:00:22]} 47. bxa5 {[%clk 0:00:10]}  Bxa5 {[%clk 0:00:23]} 48. f5+ {[%clk 0:00:09]}  gxf5+ {[%clk 0:00:21]} 49. gxf5+ {[%clk 0:00:09]}  Kf6 {[%clk 0:00:22]} 50. Bc5 {[%clk 0:00:09]}  Bd2 {[%clk 0:00:19]} 51. Bd4+ {[%clk 0:00:09]}  Kg5 {[%clk 0:00:18]} 52. f6 {[%clk 0:00:08]}  Kg6 {[%clk 0:00:18]} 53. Be5 {[%clk 0:00:08]}  Bg5 {[%clk 0:00:17]} 54. Bf4 {[%clk 0:00:04]}  Bxf4 {[%clk 0:00:16]} 0-1


[Site "https://www.chess.com"]

[Event "Titled Tuesday Blitz November 9 2021"]
[White "Kobalia, Mikhail"]
[Black "Hakobyan, Aram"]
[WhiteFideId "4119150"]
[BlackFideId "13306677"]
[WhiteElo "2543"]
[BlackElo "2557"]
[Result "0-1"]
[Round "09"]
[TimeControl "180+1"]
[Date "2021.11.09"]
[WhiteClock "0:00:07"]
[BlackClock "0:00:20"]

1. e4 {[%clk 0:03:00]}  e5 {[%clk 0:02:49]} 2. Nf3 {[%clk 0:02:59]}  Nc6 {[%clk 0:02:49]} 3. Bb5 {[%clk 0:02:59]}  Bc5 {[%clk 0:02:44]} 4. c3 {[%clk 0:02:56]}  Nge7 {[%clk 0:02:44]} 5. d4 {[%clk 0:02:56]}  exd4 {[%clk 0:02:44]} 6. cxd4 {[%clk 0:02:56]}  Bb4+ {[%clk 0:02:45]} 7. Bd2 {[%clk 0:02:56]}  Bxd2+ {[%clk 0:02:45]} 8. Qxd2 {[%clk 0:02:57]}  a6 {[%clk 0:02:43]} 9. Ba4 {[%clk 0:02:52]}  d5 {[%clk 0:02:42]} 10. exd5 {[%clk 0:02:52]}  Nxd5 {[%clk 0:02:43]} 11. Bxc6+ {[%clk 0:02:51]}  bxc6 {[%clk 0:02:43]} 12. O-O {[%clk 0:02:51]}  O-O {[%clk 0:02:43]} 13. Nc3 {[%clk 0:02:45]}  Be6 {[%clk 0:02:35]} 14. Ne5 {[%clk 0:02:36]}  Nxc3 {[%clk 0:02:29]} 15. Qxc3 {[%clk 0:02:36]}  Bd5 {[%clk 0:02:26]} 16. Nxc6 {[%clk 0:02:36]}  Qg5 {[%clk 0:02:27]} 17. Qg3 {[%clk 0:02:35]}  Qf6 {[%clk 0:02:20]} 18. Nb4 {[%clk 0:02:24]}  Be4 {[%clk 0:01:52]} 19. Rfe1 {[%clk 0:01:34]}  Qxd4 {[%clk 0:01:50]} 20. Qc3 {[%clk 0:01:34]}  Qxc3 {[%clk 0:01:49]} 21. bxc3 {[%clk 0:01:34]}  Rfe8 {[%clk 0:01:50]} 22. f3 {[%clk 0:01:32]}  Bb7 {[%clk 0:01:48]} 23. Rxe8+ {[%clk 0:01:27]}  Rxe8 {[%clk 0:01:49]} 24. Rd1 {[%clk 0:01:27]}  a5 {[%clk 0:01:06]} 25. Nd5 {[%clk 0:01:25]}  h5 {[%clk 0:00:46]} 26. Nxc7 {[%clk 0:01:25]}  Re5 {[%clk 0:00:46]} 27. Rd8+ {[%clk 0:01:09]}  Kh7 {[%clk 0:00:46]} 28. Rb8 {[%clk 0:01:06]}  Bc6 {[%clk 0:00:46]} 29. Rb6 {[%clk 0:01:06]}  Rc5 {[%clk 0:00:44]} 30. Ra6 {[%clk 0:00:51]}  a4 {[%clk 0:00:41]} 31. Ra7 {[%clk 0:00:40]}  Rxc3 {[%clk 0:00:40]} 32. h4 {[%clk 0:00:38]}  Rc1+ {[%clk 0:00:34]} 33. Kh2 {[%clk 0:00:36]}  Rc2 {[%clk 0:00:35]} 34. Kg3 {[%clk 0:00:36]}  Rxa2 {[%clk 0:00:35]} 35. Ra5 {[%clk 0:00:36]}  g6 {[%clk 0:00:29]} 36. Rc5 {[%clk 0:00:35]}  Bd7 {[%clk 0:00:27]} 37. Nd5 {[%clk 0:00:33]}  Be6 {[%clk 0:00:27]} 38. Nf4 {[%clk 0:00:29]}  Bb3 {[%clk 0:00:26]} 39. Rc7 {[%clk 0:00:28]}  Rc2 {[%clk 0:00:26]} 40. Ra7 {[%clk 0:00:28]}  Kg7 {[%clk 0:00:25]} 41. Nh3 {[%clk 0:00:27]}  Ra2 {[%clk 0:00:24]} 42. Ng5 {[%clk 0:00:27]}  a3 {[%clk 0:00:25]} 43. Ne4 {[%clk 0:00:26]}  Ra1 {[%clk 0:00:24]} 44. Nd2 {[%clk 0:00:23]}  Be6 {[%clk 0:00:21]} 45. Ne4 {[%clk 0:00:21]}  a2 {[%clk 0:00:21]} 46. Nc3 {[%clk 0:00:07]}  Rc1 {[%clk 0:00:20]} 0-1


[Site "https://www.chess.com"]

[Event "Titled Tuesday Blitz November 9 2021"]
[White "Lazavik, Denis"]
[Black "Tari, Aryan"]
[WhiteFideId "13515110"]
[BlackFideId "1510045"]
[WhiteElo "2436"]
[BlackElo "2656"]
[Result "0-1"]
[Round "09"]
[TimeControl "180+1"]
[Date "2021.11.09"]
[WhiteClock "0:00:01"]
[BlackClock "0:00:14"]

1. d4 {[%clk 0:03:00]}  d5 {[%clk 0:02:55]} 2. c4 {[%clk 0:02:58]}  e6 {[%clk 0:02:56]} 3. Nf3 {[%clk 0:02:58]}  Nf6 {[%clk 0:02:51]} 4. Nc3 {[%clk 0:02:57]}  Nbd7 {[%clk 0:02:51]} 5. Bg5 {[%clk 0:02:54]}  h6 {[%clk 0:02:46]} 6. Bh4 {[%clk 0:02:52]}  Be7 {[%clk 0:02:44]} 7. e3 {[%clk 0:02:52]}  O-O {[%clk 0:02:44]} 8. Qc2 {[%clk 0:02:50]}  c6 {[%clk 0:02:34]} 9. Rc1 {[%clk 0:02:42]}  b6 {[%clk 0:02:28]} 10. cxd5 {[%clk 0:02:39]}  cxd5 {[%clk 0:02:26]} 11. Bd3 {[%clk 0:02:34]}  Bb7 {[%clk 0:02:26]} 12. O-O {[%clk 0:02:34]}  a6 {[%clk 0:02:25]} 13. Bg3 {[%clk 0:02:08]}  b5 {[%clk 0:02:22]} 14. a4 {[%clk 0:01:58]}  b4 {[%clk 0:02:18]} 15. Ne2 {[%clk 0:01:57]}  Rc8 {[%clk 0:01:54]} 16. Qb3 {[%clk 0:01:56]}  Qa5 {[%clk 0:01:54]} 17. Nd2 {[%clk 0:01:10]}  Ne4 {[%clk 0:01:41]} 18. Bxe4 {[%clk 0:00:40]}  dxe4 {[%clk 0:01:42]} 19. Nf4 {[%clk 0:00:37]}  Nb6 {[%clk 0:01:39]} 20. Nc4 {[%clk 0:00:23]}  Qxa4 {[%clk 0:01:22]} 21. Qxa4 {[%clk 0:00:17]}  Nxa4 {[%clk 0:01:23]} 22. Ne2 {[%clk 0:00:12]}  Bd5 {[%clk 0:01:21]} 23. b3 {[%clk 0:00:13]}  Bxc4 {[%clk 0:01:14]} 24. bxc4 {[%clk 0:00:14]}  Nb2 {[%clk 0:01:02]} 25. c5 {[%clk 0:00:11]}  a5 {[%clk 0:01:02]} 26. Rc2 {[%clk 0:00:11]}  Nd3 {[%clk 0:00:59]} 27. Ra1 {[%clk 0:00:11]}  b3 {[%clk 0:00:57]} 28. Rc3 {[%clk 0:00:11]}  b2 {[%clk 0:00:56]} 29. Rb1 {[%clk 0:00:11]}  e5 {[%clk 0:00:37]} 30. Bxe5 {[%clk 0:00:09]}  Nxe5 {[%clk 0:00:33]} 31. dxe5 {[%clk 0:00:10]}  Rxc5 {[%clk 0:00:32]} 32. Rxc5 {[%clk 0:00:07]}  Bxc5 {[%clk 0:00:33]} 33. Rxb2 {[%clk 0:00:08]}  Rd8 {[%clk 0:00:33]} 34. g4 {[%clk 0:00:07]}  a4 {[%clk 0:00:33]} 35. Rb5 {[%clk 0:00:07]}  Be7 {[%clk 0:00:20]} 36. Ra5 {[%clk 0:00:07]}  a3 {[%clk 0:00:20]} 37. Nc3 {[%clk 0:00:07]}  Rd2 {[%clk 0:00:18]} 38. Nxe4 {[%clk 0:00:06]}  Rc2 {[%clk 0:00:19]} 39. Kg2 {[%clk 0:00:05]}  Bb4 {[%clk 0:00:18]} 40. Ra8+ {[%clk 0:00:05]}  Kh7 {[%clk 0:00:18]} 41. Nd6 {[%clk 0:00:03]}  a2 {[%clk 0:00:16]} 42. Nb5 {[%clk 0:00:03]}  Rb2 {[%clk 0:00:13]} 43. Kf3 {[%clk 0:00:03]}  Be1 {[%clk 0:00:13]} 44. Nd4 {[%clk 0:00:03]}  Bc3 {[%clk 0:00:13]} 45. Ne2 {[%clk 0:00:01]}  Rxe2 {[%clk 0:00:13]} 46. Kxe2 {[%clk 0:00:01]}  a1=Q {[%clk 0:00:14]} 0-1


[Site "https://www.chess.com"]

[Event "Titled Tuesday Blitz November 9 2021"]
[White "Maly, Alexey"]
[Black "Salinas Herrera, Pablo"]
[WhiteFideId "14103184"]
[BlackFideId "3407128"]
[WhiteElo "2294"]
[BlackElo "2541"]
[Result "1/2-1/2"]
[Round "09"]
[TimeControl "180+1"]
[Date "2021.11.09"]
[WhiteClock "0:00:31"]
[BlackClock "0:00:09"]

1. d4 {[%clk 0:03:00]}  d5 {[%clk 0:02:43]} 2. c4 {[%clk 0:03:00]}  e6 {[%clk 0:02:43]} 3. Nf3 {[%clk 0:03:00]}  a6 {[%clk 0:02:43]} 4. e3 {[%clk 0:03:01]}  Nf6 {[%clk 0:02:42]} 5. Nbd2 {[%clk 0:03:01]}  b6 {[%clk 0:02:42]} 6. Bd3 {[%clk 0:03:01]}  Bb7 {[%clk 0:02:43]} 7. O-O {[%clk 0:03:01]}  Nbd7 {[%clk 0:02:43]} 8. Qe2 {[%clk 0:03:01]}  Bd6 {[%clk 0:02:44]} 9. e4 {[%clk 0:03:02]}  dxe4 {[%clk 0:02:44]} 10. Nxe4 {[%clk 0:03:03]}  Nxe4 {[%clk 0:02:35]} 11. Bxe4 {[%clk 0:03:04]}  Bxe4 {[%clk 0:02:35]} 12. Qxe4 {[%clk 0:03:04]}  O-O {[%clk 0:02:36]} 13. b3 {[%clk 0:03:04]}  Re8 {[%clk 0:02:31]} 14. Bb2 {[%clk 0:03:03]}  a5 {[%clk 0:02:19]} 15. Rad1 {[%clk 0:03:02]}  a4 {[%clk 0:02:18]} 16. Qb1 {[%clk 0:02:59]}  axb3 {[%clk 0:02:17]} 17. axb3 {[%clk 0:03:00]}  Qc8 {[%clk 0:02:11]} 18. Rd3 {[%clk 0:03:00]}  Qb7 {[%clk 0:02:06]} 19. Rfd1 {[%clk 0:03:00]}  Be7 {[%clk 0:01:43]} 20. h3 {[%clk 0:02:58]}  Bf6 {[%clk 0:01:43]} 21. R3d2 {[%clk 0:02:51]}  b5 {[%clk 0:01:41]} 22. Qc2 {[%clk 0:02:45]}  bxc4 {[%clk 0:01:39]} 23. bxc4 {[%clk 0:02:46]}  Ra2 {[%clk 0:01:35]} 24. Ra1 {[%clk 0:02:45]}  Rxa1+ {[%clk 0:01:30]} 25. Bxa1 {[%clk 0:02:46]}  c5 {[%clk 0:01:31]} 26. Bc3 {[%clk 0:02:42]}  cxd4 {[%clk 0:01:28]} 27. Bxd4 {[%clk 0:02:43]}  Rc8 {[%clk 0:01:24]} 28. Bxf6 {[%clk 0:02:41]}  Nxf6 {[%clk 0:01:24]} 29. Ne5 {[%clk 0:02:37]}  Qc7 {[%clk 0:00:54]} 30. Qd3 {[%clk 0:02:29]}  h6 {[%clk 0:00:50]} 31. Qd4 {[%clk 0:02:25]}  Qa5 {[%clk 0:00:31]} 32. Rd3 {[%clk 0:02:08]}  Qc7 {[%clk 0:00:09]} 33. Rd1 {[%clk 0:02:05]}  Qa5 {[%clk 0:00:08]} 34. Kh2 {[%clk 0:01:56]}  Qb4 {[%clk 0:00:08]} 35. Rd2 {[%clk 0:01:47]}  Qb8 {[%clk 0:00:08]} 36. g3 {[%clk 0:01:43]}  Qc7 {[%clk 0:00:09]} 37. Rd3 {[%clk 0:01:37]}  h5 {[%clk 0:00:08]} 38. Kg2 {[%clk 0:01:35]}  Qa5 {[%clk 0:00:08]} 39. Rf3 {[%clk 0:01:27]}  Qc7 {[%clk 0:00:08]} 40. g4 {[%clk 0:01:25]}  Rd8 {[%clk 0:00:08]} 41. Qe3 {[%clk 0:01:21]}  hxg4 {[%clk 0:00:08]} 42. hxg4 {[%clk 0:01:21]}  Rf8 {[%clk 0:00:07]} 43. g5 {[%clk 0:01:18]}  Nd7 {[%clk 0:00:07]} 44. Nxd7 {[%clk 0:01:15]}  Qxd7 {[%clk 0:00:08]} 45. g6 {[%clk 0:01:15]}  fxg6 {[%clk 0:00:07]} 46. Rxf8+ {[%clk 0:01:13]}  Kxf8 {[%clk 0:00:08]} 47. c5 {[%clk 0:01:06]}  Qd5+ {[%clk 0:00:07]} 48. f3 {[%clk 0:01:03]}  Ke7 {[%clk 0:00:07]} 49. Qa3 {[%clk 0:01:00]}  Kf6 {[%clk 0:00:04]} 50. Qc3+ {[%clk 0:00:58]}  Qe5 {[%clk 0:00:02]} 51. Qc4 {[%clk 0:00:55]}  Qb2+ {[%clk 0:00:02]} 52. Kh3 {[%clk 0:00:53]}  Qe5 {[%clk 0:00:02]} 53. c6 {[%clk 0:00:51]}  Qc7 {[%clk 0:00:03]} 54. f4 {[%clk 0:00:47]}  Kf7 {[%clk 0:00:03]} 55. Kg4 {[%clk 0:00:45]}  Ke7 {[%clk 0:00:03]} 56. Qc5+ {[%clk 0:00:43]}  Kf6 {[%clk 0:00:03]} 57. Qe5+ {[%clk 0:00:35]}  Qxe5 {[%clk 0:00:04]} 58. fxe5+ {[%clk 0:00:36]}  Ke7 {[%clk 0:00:05]} 59. Kg5 {[%clk 0:00:36]}  Kd8 {[%clk 0:00:05]} 60. Kxg6 {[%clk 0:00:37]}  Kc7 {[%clk 0:00:06]} 61. Kf7 {[%clk 0:00:30]}  g5 {[%clk 0:00:06]} 62. Kxe6 {[%clk 0:00:30]}  g4 {[%clk 0:00:06]} 63. Kf7 {[%clk 0:00:31]}  g3 {[%clk 0:00:07]} 64. e6 {[%clk 0:00:31]}  g2 {[%clk 0:00:08]} 65. e7 {[%clk 0:00:32]}  g1=Q {[%clk 0:00:08]} 66. e8=Q {[%clk 0:00:33]}  Qf2+ {[%clk 0:00:09]} 67. Kg6 {[%clk 0:00:32]}  Qg3+ {[%clk 0:00:09]} 68. Kf6 {[%clk 0:00:32]}  Qf3+ {[%clk 0:00:09]} 69. Kg7 {[%clk 0:00:32]}  Qxc6 {[%clk 0:00:09]} 70. Qxc6+ {[%clk 0:00:31]}  Kxc6 {[%clk 0:00:09]} 1/2-1/2


[Site "https://www.chess.com"]